bitfinex/quotes_BTCUSD_20240815
["timestamp","ask_amount","ask_price","bid_price","bid_amount"]
[1723765068071,0.0865272,57783.0,57779.0,0.0803]
[1723765068072,0.01,57781.0,57779.0,0.0812042]
[1723765068272,0.183068,57781.0,57779.0,0.0812042]
[1723765069058,0.008,57780.0,57779.0,0.0812042]
[1723765069258,0.86535,57780.0,57779.0,0.0812042]
[1723765069465,0.86535,57780.0,57779.0,0.0009042]
[1723765069670,0.519228,57778.0,57777.0,0.0773]
[1723765069877,0.9519168,57778.0,57777.0,0.0773]
[1723765071494,0.9569168,57778.0,57777.0,0.0773]
[1723765072216,0.9629168,57778.0,57777.0,0.0773]
[1723765072416,0.173091,57773.0,57772.0,0.0612]
[1723765072618,0.519273,57773.0,57772.0,0.0612]
[1723765072819,0.173091,57773.0,57772.0,0.1387]
[1723765073384,0.865455,57773.0,57772.0,0.1387]
[1723765073593,0.87117377,57773.0,57772.0,0.1387]
[1723765073792,0.519273,57773.0,57772.0,0.1387]
[1723765073995,0.87117376,57773.0,57772.0,0.0775]
[1723765074196,0.87117376,57773.0,57771.0,0.1002]
[1723765074197,0.173094,57772.0,57771.0,0.1002]
[1723765074397,0.519372,57762.0,57761.0,0.0805]
[1723765074597,0.52509165,57762.0,57761.0,0.0805]
[1723765074821,0.87133965,57762.0,57761.0,0.0805]
[1723765075225,0.52509165,57762.0,57761.0,0.0805]
[1723765076167,0.18384365,57762.0,57761.0,0.0805]
[1723765077459,0.182124,57762.0,57761.0,0.0805]
[1723765077667,0.18784375,57762.0,57761.0,0.0805]
[1723765078628,0.01471975,57762.0,57761.0,0.0805]
[1723765078836,0.009,57762.0,57761.0,0.0805]
[1723765079379,0.182124,57762.0,57761.0,0.0805]
[1723765079579,0.01471975,57762.0,57761.0,0.0815]
[1723765079783,0.009,57762.0,57761.0,0.0815]
[1723765080188,0.009,57762.0,57761.0,0.254627]
[1723765080353,0.009,57762.0,57761.0,0.0805]
[1723765080555,0.21822008,57762.0,57761.0,0.0805]
[1723765080753,0.22393983,57762.0,57761.0,0.0814042]
[1723765081213,0.05081583,57762.0,57761.0,0.0824042]
[1723765081415,0.05081583,57762.0,57761.0,0.2555312]
[1723765081592,0.01471975,57762.0,57761.0,0.2545312]
[1723765081791,0.01471975,57762.0,57761.0,0.0814042]
[1723765082070,0.009,57762.0,57761.0,0.0814042]
[1723765082701,0.009,57762.0,57761.0,0.0824042]
[1723765082901,0.009,57762.0,57761.0,0.6017852]
[1723765083103,0.009,57762.0,57761.0,0.0814042]
[1723765083379,0.182124,57762.0,57761.0,0.0814042]
[1723765083529,0.18784375,57762.0,57761.0,0.0814042]
[1723765083915,0.182124,57762.0,57761.0,0.0814042]
[1723765084109,0.18784347,57762.0,57761.0,0.0814042]
[1723765084528,0.18784397,57762.0,57761.0,0.0814042]
[1723765084953,0.18784397,57762.0,57761.0,1e-08]
[1723765084954,0.53409197,57762.0,57761.0,1e-08]
[1723765085579,0.88033997,57762.0,57761.0,1e-08]
[1723765085779,1.22658797,57762.0,57761.0,1e-08]
[1723765086383,1.14016903,57762.0,57761.0,1e-08]
[1723765086600,1.28947487,57762.0,57761.0,1e-08]
[1723765086758,1.30305593,57762.0,57761.0,1e-08]
[1723765087164,1.31305593,57762.0,57761.0,1e-08]
[1723765087775,1.28947487,57762.0,57761.0,1e-08]
[1723765087903,1.30947487,57762.0,57761.0,1e-08]
[1723765088117,1.29947487,57762.0,57761.0,1e-08]
[1723765088608,1.30947487,57762.0,57761.0,1e-08]
[1723765089531,1.14658797,57762.0,57761.0,1e-08]
[1723765090711,0.05,57762.0,57709.0,0.9953]
[1723765090923,0.346301,57754.0,57745.0,0.34635]
[1723765091145,0.346301,57754.0,57747.0,0.173168]
[1723765091146,0.173158,57751.0,57747.0,0.173168]
[1723765091551,0.173158,57751.0,57748.0,0.003]
[1723765091781,0.173147,57755.0,57752.0,0.001]
[1723765091933,0.173147,57755.0,57746.0,0.08577727]
[1723765091934,0.4781,57762.0,57759.0,0.003]
[1723765092147,0.01,57762.0,57759.0,0.173132]
[1723765092363,0.01,57762.0,57757.0,0.346277]
[1723765092364,0.183125,57762.0,57758.0,0.173135]
[1723765092574,0.0529361,57761.0,57758.0,0.173135]
[1723765092786,0.346218,57767.0,57757.0,0.346277]
[1723765092787,0.346227,57766.0,57762.0,0.003]
[1723765093205,0.173122,57763.0,57759.0,0.001]
[1723765093480,0.346225,57766.0,57761.0,0.0009031]
[1723765093685,0.173119,57764.0,57761.0,0.0009031]
[1723765093883,0.173119,57764.0,57762.0,0.0773]
[1723765094099,0.346225,57766.0,57763.0,0.001]
[1723765094303,0.17311,57767.0,57766.0,0.001]
[1723765094426,0.17311,57767.0,57766.0,0.003]
[1723765094427,0.173109,57767.0,57766.0,0.003]
[1723765095287,0.346206,57769.0,57766.0,0.003]
[1723765095288,0.346207,57769.0,57766.0,0.003]
[1723765095490,0.014,57767.0,57766.0,0.003]
[1723765096166,0.173107,57768.0,57767.0,0.001]
[1723765096711,0.173107,57768.0,57764.0,0.173118]
[1723765096712,0.173107,57768.0,57764.0,0.003]
[1723765096914,0.014,57766.0,57762.0,0.0773]
[1723765097088,0.187112,57766.0,57762.0,0.0783]
[1723765097283,0.173115,57765.0,57762.0,0.0783]
[1723765097530,0.173115,57765.0,57762.0,0.0803]
[1723765097714,0.173111,57767.0,57762.0,0.251423]
[1723765097916,0.173105,57769.0,57764.0,0.003]
[1723765098100,0.18711,57767.0,57764.0,0.003]
[1723765098305,0.18711,57767.0,57766.0,0.001]
[1723765098503,0.0057194,57767.0,57766.0,0.001]
[1723765098676,0.0057194,57767.0,57766.0,0.003]
[1723765099518,0.1788284,57767.0,57766.0,0.003]
[1723765099744,0.0057194,57767.0,57762.0,0.0773]
[1723765099944,0.173116,57765.0,57762.0,0.0803]
[1723765100165,0.0057194,57764.0,57762.0,0.0803]
[1723765100328,0.0057194,57763.0,57762.0,0.0803]
[1723765100531,0.173119,57764.0,57762.0,0.0783]
[1723765100731,0.00571943,57763.0,57762.0,0.0803]
[1723765100934,0.00571943,57763.0,57762.0,0.0773]
[1723765101301,0.00571943,57763.0,57762.0,0.0803]
[1723765101628,0.01671943,57763.0,57762.0,0.0803]
[1723765102237,0.01671943,57763.0,57762.0,0.0773]
[1723765102463,0.01671943,57763.0,57762.0,0.0783]
[1723765102670,0.01671943,57763.0,57762.0,0.0803]
[1723765102874,0.18984043,57763.0,57762.0,0.0773]
[1723765103075,0.01671943,57763.0,57762.0,0.0773]
[1723765103249,0.06703869,57763.0,57762.0,0.0773]
[1723765104069,0.07703869,57763.0,57762.0,0.0773]
[1723765104467,0.07703869,57763.0,57762.0,0.0783]
[1723765104664,0.02671943,57763.0,57762.0,0.0773]
[1723765104895,0.19984043,57763.0,57762.0,0.0773]
[1723765105254,0.07851458,57763.0,57762.0,0.0773]
[1723765105454,0.02671943,57763.0,57762.0,0.0773]
[1723765106687,0.02671943,57763.0,57762.0,0.0803]
[1723765108656,0.02671943,57763.0,57762.0,0.94435054]
[1723765108906,0.02671943,57763.0,57762.0,1.52592254]
[1723765109174,0.021,57763.0,57762.0,1.52592254]
[1723765109903,0.011,57763.0,57762.0,1.52592254]
[1723765110227,0.016,57763.0,57762.0,1.52592254]
[1723765111455,0.005,57763.0,57762.0,1.17967454]
[1723765111693,0.01,57763.0,57762.0,1.18067454]
[1723765112204,0.01,57763.0,57762.0,1.52692254]
[1723765114169,0.01,57763.0,57762.0,1.97317054]
[1723765115133,0.005,57763.0,57762.0,1.97317054]
[1723765115333,0.005,57763.0,57762.0,1.97217054]
[1723765115537,0.00571781,57777.0,57770.0,1.3598]
[1723765115742,0.00571781,57780.0,57770.0,1.53135454]
[1723765116122,0.000822,57783.0,57770.0,1.63135454]
[1723765116408,0.000822,57783.0,57770.0,1.97755454]
[1723765116731,0.000822,57783.0,57770.0,2.40623584]
[1723765116892,0.000822,57783.0,57770.0,2.23413584]
[1723765117105,0.000822,57783.0,57770.0,2.40723584]
[1723765117914,0.002821,57771.0,57770.0,2.40723584]
[1723765118117,0.002821,57771.0,57770.0,2.41732562]
[1723765118275,0.002821,57771.0,57770.0,2.35884432]
[1723765118475,0.002821,57771.0,57770.0,2.35784432]
[1723765118831,0.001821,57771.0,57770.0,2.37084432]
[1723765119017,0.002821,57771.0,57770.0,2.38484432]
[1723765119219,0.001821,57771.0,57770.0,2.37184432]
[1723765119414,0.001821,57771.0,57770.0,1.64144432]
[1723765119415,0.000821,57771.0,57770.0,1.64144432]
[1723765119727,0.002821,57771.0,57770.0,0.45475454]
[1723765120096,0.002821,57771.0,57770.0,0.80095454]
[1723765120323,0.002821,57771.0,57770.0,0.78795454]
[1723765120324,0.001821,57771.0,57770.0,0.78795454]
[1723765120667,0.001821,57771.0,57770.0,1.13415454]
[1723765121067,0.000821,57771.0,57770.0,1.12015454]
[1723765121473,0.001821,57771.0,57770.0,1.13215454]
[1723765122079,0.001821,57771.0,57770.0,1.53405454]
[1723765122301,0.000821,57771.0,57770.0,1.52805454]
[1723765122463,0.001821,57771.0,57770.0,1.53405454]
[1723765122684,0.002821,57771.0,57770.0,1.54005454]
[1723765123079,0.000821,57771.0,57770.0,1.52805454]
[1723765123277,0.001821,57771.0,57770.0,1.53505454]
[1723765124377,0.002821,57771.0,57770.0,1.54205454]
[1723765124790,0.000821,57771.0,57770.0,1.52805454]
[1723765124915,0.002821,57771.0,57770.0,1.94873584]
[1723765125134,0.002821,57771.0,57770.0,2.31273584]
[1723765125379,0.002821,57771.0,57770.0,2.25425454]
[1723765126183,0.001821,57771.0,57770.0,2.24625454]
[1723765126453,0.000821,57771.0,57770.0,2.23725454]
[1723765126632,0.000821,57771.0,57770.0,2.05456154]
[1723765126633,0.001821,57771.0,57770.0,2.05456154]
[1723765126835,0.001821,57771.0,57770.0,1.98525454]
[1723765127626,0.001821,57771.0,57770.0,1.99218554]
[1723765128305,0.002821,57771.0,57770.0,0.19355454]
[1723765128509,0.002821,57771.0,57770.0,0.36765454]
[1723765128707,0.002821,57771.0,57770.0,0.71385454]
[1723765128912,0.002821,57771.0,57770.0,1.06205454]
[1723765129166,0.002821,57771.0,57770.0,1.05105454]
[1723765129366,0.000821,57771.0,57770.0,1.04005454]
[1723765129569,0.000821,57771.0,57770.0,0.69385454]
[1723765131242,0.000821,57771.0,57770.0,0.69485454]
[1723765131445,0.249618,57771.0,57770.0,0.001]
[1723765132426,0.249618,57771.0,57761.0,0.0078361]
[1723765132427,0.346212,57768.0,57761.0,0.0078361]
[1723765132613,0.0757,57762.0,57761.0,0.0009031]
[1723765132839,0.0757,57762.0,57761.0,0.0019031]
[1723765133038,0.0757,57762.0,57761.0,0.0009031]
[1723765133039,0.0891437,57762.0,57761.0,0.0009031]
[1723765133543,0.0891437,57762.0,57761.0,0.0039031]
[1723765133742,0.0134437,57762.0,57761.0,0.0039031]
[1723765134094,0.00772432,57762.0,57761.0,0.0039031]
[1723765134304,0.16780443,57762.0,57761.0,0.0009031]
[1723765134546,1.35918735,57762.0,57761.0,0.0009031]
[1723765134745,1.37285984,57762.0,57761.0,0.0019031]
[1723765134949,1.51014582,57762.0,57761.0,0.0019031]
[1723765135098,1.51114582,57762.0,57761.0,0.0019031]
[1723765135332,1.50414582,57762.0,57761.0,0.0019031]
[1723765135535,1.51014582,57762.0,57761.0,0.0019031]
[1723765135735,1.51714582,57762.0,57761.0,0.0029031]
[1723765135936,1.02061184,57762.0,57761.0,0.0009031]
[1723765136137,0.66669135,57762.0,57761.0,0.0009031]
[1723765136341,0.68169179,57762.0,57761.0,0.0029031]
[1723765136738,0.68927214,57762.0,57761.0,0.0029031]
[1723765137119,1.03552014,57762.0,57761.0,0.0029031]
[1723765137440,1.08358472,57762.0,57761.0,0.0029031]
[1723765137622,1.42983272,57762.0,57761.0,0.0029031]
[1723765137827,1.07600437,57762.0,57761.0,0.0029031]
[1723765138232,1.12763872,57762.0,57761.0,0.0029031]
[1723765138432,1.71388672,57762.0,57761.0,0.0029031]
[1723765138636,1.7397039,57762.0,57761.0,0.0029031]
[1723765138836,1.66225237,57762.0,57761.0,0.0029031]
[1723765139061,0.173155,57752.0,57750.0,0.003]
[1723765139380,0.3463,57754.0,57744.0,0.0009042]
[1723765139381,0.519525,57745.0,57744.0,0.0009042]
[1723765139704,0.52524632,57745.0,57744.0,0.0009042]
[1723765139877,0.18076485,57745.0,57744.0,0.0019042]
[1723765140081,0.18076485,57745.0,57744.0,0.0009042]
[1723765140285,0.00758985,57745.0,57744.0,0.17545874]
[1723765140509,0.346327,57749.0,57744.0,0.17245874]
[1723765140713,0.173173,57746.0,57744.0,0.17245798]
[1723765140927,0.173169,57747.0,57744.0,0.17245798]
[1723765141307,0.00759081,57746.0,57744.0,0.17245798]
[1723765141615,0.173169,57747.0,57744.0,0.17345798]
[1723765141788,0.173169,57747.0,57744.0,0.17445798]
[1723765141990,0.173169,57747.0,57744.0,0.17645798]
[1723765142199,0.179169,57747.0,57744.0,0.17645798]
[1723765142604,0.004,57746.0,57744.0,0.17645798]
[1723765143437,0.004,57746.0,57744.0,0.17545798]
[1723765143607,0.173169,57747.0,57745.0,0.001]
[1723765144027,0.346327,57749.0,57744.0,0.17545798]
[1723765144157,0.083053,57749.0,57747.0,0.001]
[1723765144353,0.1379,57751.0,57749.0,0.001]
[1723765144555,0.17316,57750.0,57749.0,0.001]
[1723765144766,0.34629,57755.0,57750.0,0.003]
[1723765144971,0.251575,57745.0,57744.0,0.00090344]
[1723765145168,0.94775052,57745.0,57744.0,0.00090344]
[1723765145392,1.18775052,57745.0,57744.0,0.00090344]
[1723765145642,0.944275,57745.0,57744.0,0.00090344]
[1723765145887,0.94999682,57745.0,57744.0,0.00090344]
[1723765146319,1.0834293,57745.0,57744.0,0.00090344]
[1723765146437,0.94999682,57745.0,57744.0,0.00090344]
[1723765146642,0.60364682,57745.0,57744.0,0.00090344]
[1723765147142,0.95099682,57745.0,57744.0,0.00090344]
[1723765147364,0.95399682,57745.0,57744.0,0.00090344]
[1723765147564,0.95971847,57745.0,57744.0,0.00090344]
[1723765148002,0.948275,57745.0,57744.0,0.00090344]
[1723765148177,0.600925,57745.0,57744.0,0.00090344]
[1723765148377,0.603925,57745.0,57744.0,0.00090344]
[1723765151261,0.603925,57745.0,57744.0,0.00190344]
[1723765151262,0.006,57745.0,57744.0,0.00190344]
[1723765151594,0.006,57745.0,57744.0,0.00090344]
[1723765152201,0.006,57745.0,57744.0,0.42933598]
[1723765152602,0.006,57745.0,57744.0,0.77769198]
[1723765153061,0.006,57745.0,57744.0,0.43133598]
[1723765153258,0.006,57745.0,57744.0,0.77769198]
[1723765153461,0.006,57745.0,57744.0,1.12404798]
[1723765154475,0.006,57745.0,57744.0,0.43133598]
[1723765154674,0.006,57745.0,57744.0,0.69299198]
[1723765155120,0.006,57745.0,57744.0,0.69499198]
[1723765159199,0.006,57745.0,57744.0,1.04134798]
[1723765161321,0.003,57745.0,57744.0,1.04134798]
[1723765161506,0.005,57745.0,57744.0,1.04134798]
[1723765161741,0.002,57745.0,57744.0,1.04134798]
[1723765161962,0.004,57745.0,57744.0,1.04134798]
[1723765162405,0.002,57745.0,57744.0,1.87865998]
[1723765162622,0.002,57745.0,57744.0,1.97865998]
[1723765162623,0.003,57745.0,57744.0,1.97865998]
[1723765162825,0.003,57745.0,57744.0,2.21865998]
[1723765162932,0.001,57745.0,57744.0,2.21865998]
[1723765163134,0.002,57745.0,57744.0,1.63230398]
[1723765163350,0.001,57745.0,57744.0,1.63230398]
[1723765163756,0.000822,57746.0,57745.0,1.215225]
[1723765163960,0.000822,57746.0,57745.0,1.48677954]
[1723765165213,0.000822,57746.0,57745.0,1.56907954]
[1723765165840,0.001822,57746.0,57745.0,1.57907954]
[1723765166071,0.002822,57746.0,57745.0,1.58907954]
[1723765166500,0.001822,57746.0,57745.0,1.57907954]
[1723765166916,0.002822,57746.0,57745.0,1.16042954]
[1723765167124,0.002822,57746.0,57745.0,0.36772954]
[1723765167334,0.002822,57746.0,57745.0,0.36572954]
[1723765167961,0.002822,57746.0,57745.0,0.71207954]
[1723765168166,0.00854233,57746.0,57745.0,0.71207954]
[1723765168365,0.002822,57746.0,57745.0,0.71207954]
[1723765169195,0.002822,57746.0,57745.0,0.71407954]
[1723765170463,0.002822,57746.0,57745.0,0.36772954]
[1723765171059,0.00854277,57746.0,57745.0,0.71407954]
[1723765171241,0.002822,57746.0,57745.0,0.71407954]
[1723765171991,0.00854277,57746.0,57745.0,0.71407954]
[1723765172336,0.002822,57746.0,57745.0,0.71407954]
[1723765173093,0.00854277,57746.0,57745.0,1.06042954]
[1723765173315,0.002822,57746.0,57745.0,1.06042954]
[1723765173925,0.002822,57746.0,57745.0,1.13942954]
[1723765174980,0.002822,57746.0,57745.0,0.36772954]
[1723765175408,0.002822,57746.0,57745.0,0.71407954]
[1723765175822,0.002822,57746.0,57745.0,0.36772954]
[1723765176020,0.002822,57746.0,57745.0,0.71407954]
[1723765176482,0.00854277,57746.0,57745.0,0.71407954]
[1723765176617,0.002822,57746.0,57745.0,0.71407954]
[1723765177231,0.00854277,57746.0,57745.0,0.71407954]
[1723765177411,0.00854277,57746.0,57745.0,1.06042954]
[1723765177611,0.00854277,57746.0,57745.0,1.13942954]
[1723765177806,0.002822,57746.0,57745.0,1.54717954]
[1723765178059,0.002822,57746.0,57745.0,1.06042954]
[1723765178234,0.002822,57746.0,57745.0,0.71407954]
[1723765179072,0.00854266,57746.0,57745.0,0.71407954]
[1723765179662,0.002822,57746.0,57745.0,1.06042954]
[1723765180284,0.00854266,57746.0,57745.0,1.06042954]
[1723765180641,0.002822,57746.0,57745.0,1.06042954]
[1723765181945,0.00854266,57746.0,57745.0,1.06042954]
[1723765182149,0.002822,57746.0,57745.0,1.06042954]
[1723765182717,0.00854266,57746.0,57745.0,1.06042954]
[1723765182918,0.002822,57746.0,57745.0,1.06042954]
[1723765183123,0.00854266,57746.0,57745.0,1.06042954]
[1723765185209,0.002822,57746.0,57745.0,1.06042954]
[1723765185870,0.002822,57746.0,57745.0,1.40677954]
[1723765186650,0.002822,57746.0,57745.0,1.99512954]
[1723765187666,0.002822,57746.0,57745.0,1.99612954]
[1723765187841,0.002822,57746.0,57745.0,2.02962406]
[1723765188483,0.002822,57746.0,57745.0,2.03162406]
[1723765188682,0.002822,57746.0,57745.0,2.02962406]
[1723765189080,0.002822,57746.0,57745.0,1.99512954]
[1723765189255,0.002822,57746.0,57745.0,1.64877954]
[1723765190095,0.002822,57746.0,57745.0,1.16042954]
[1723765190292,0.064222,57746.0,57745.0,0.023]
[1723765190496,0.064222,57746.0,57745.0,0.196175]
[1723765190887,0.002822,57746.0,57745.0,1.06042954]
[1723765191111,0.002822,57746.0,57745.0,0.71407954]
[1723765191321,0.002822,57746.0,57745.0,0.71730594]
[1723765193842,0.002822,57746.0,57745.0,1.06365594]
[1723765194021,0.002822,57746.0,57745.0,0.71730594]
[1723765194888,0.002822,57746.0,57745.0,1.06365594]
[1723765197617,0.002822,57746.0,57745.0,0.71730594]
[1723765197994,0.002822,57746.0,57745.0,1.06365594]
[1723765202246,0.002822,57746.0,57745.0,1.90085594]
[1723765202518,0.002822,57746.0,57745.0,2.07847057]
[1723765202822,0.002822,57746.0,57745.0,2.18818965]
[1723765202953,0.002822,57746.0,57745.0,2.18744657]
[1723765203163,0.002822,57746.0,57745.0,2.16654213]
[1723765203363,0.002822,57746.0,57745.0,2.03439846]
[1723765203577,0.002822,57746.0,57745.0,2.03639846]
[1723765203782,0.002822,57746.0,57745.0,2.01039846]
[1723765203981,0.002822,57746.0,57745.0,1.99985594]
[1723765204189,0.002822,57746.0,57745.0,1.51000594]
[1723765207346,0.002822,57746.0,57745.0,1.41000594]
[1723765207543,0.002822,57746.0,57745.0,1.06365594]
[1723765209598,0.002822,57746.0,57745.0,1.41000594]
[1723765211064,0.002822,57746.0,57745.0,0.1994014]
[1723765211285,0.15334204,57746.0,57745.0,0.1974014]
[1723765211485,0.15334204,57746.0,57745.0,0.1994014]
[1723765212029,0.15234204,57746.0,57745.0,0.0132264]
[1723765212234,0.48249316,57746.0,57745.0,0.0082264]
[1723765212431,0.32451404,57746.0,57745.0,0.0122264]
[1723765212671,0.32451404,57746.0,57745.0,0.0132264]
[1723765212874,0.318794,57746.0,57745.0,0.0122264]
[1723765213032,0.32451506,57746.0,57745.0,0.0122264]
[1723765213640,0.15134306,57746.0,57745.0,0.0072264]
[1723765213843,0.20321817,57746.0,57745.0,0.0072264]
[1723765214046,0.15134306,57746.0,57745.0,0.0152264]
[1723765214718,0.15134306,57746.0,57745.0,0.70630594]
[1723765214920,0.15134306,57746.0,57745.0,1.05265594]
[1723765215121,0.00654306,57746.0,57745.0,1.05265594]
[1723765215355,0.000822,57746.0,57745.0,1.05265594]
[1723765215499,0.00654306,57746.0,57745.0,1.05265594]
[1723765215908,0.000822,57746.0,57745.0,1.05265594]
[1723765217141,0.000822,57746.0,57745.0,1.04465594]
[1723765217413,0.083022,57746.0,57745.0,0.1834014]
[1723765217565,0.083022,57746.0,57745.0,0.70530594]
[1723765217566,0.00654236,57746.0,57745.0,0.70530594]
[1723765217744,0.000822,57746.0,57745.0,1.05165594]
[1723765218089,0.000822,57746.0,57745.0,1.81675594]
[1723765218298,0.000822,57746.0,57745.0,1.91675594]
[1723765218517,0.001822,57746.0,57745.0,1.91975594]
[1723765218721,0.001822,57746.0,57745.0,1.92275594]
[1723765219119,0.001822,57746.0,57745.0,1.91975594]
[1723765219346,0.001822,57746.0,57745.0,1.92475594]
[1723765229632,0.001822,57746.0,57745.0,1.05565594]
[1723765229879,0.001822,57746.0,57745.0,0.36295594]
[1723765230051,0.001822,57746.0,57745.0,0.70930594]
[1723765230636,0.001822,57746.0,57745.0,1.05565594]
[1723765232877,0.001822,57746.0,57745.0,1.48190594]
[1723765233672,0.001822,57746.0,57745.0,1.58190594]
[1723765246743,0.000822,57746.0,57745.0,1.56990594]
[1723765246943,0.001822,57746.0,57745.0,1.50600594]
[1723765247551,0.000822,57746.0,57745.0,1.14965594]
[1723765247889,0.001822,57746.0,57745.0,1.50700594]
[1723765248245,0.000822,57746.0,57745.0,1.49600594]
[1723765248447,0.000822,57746.0,57745.0,1.49000594]
[1723765248652,0.061522,57746.0,57745.0,0.36095594]
[1723765248861,0.15878124,57746.0,57745.0,0.35095594]
[1723765249068,0.15878124,57746.0,57745.0,0.69730594]
[1723765249228,0.15878124,57746.0,57745.0,0.70730594]
[1723765249229,0.15878149,57746.0,57745.0,0.70730594]
[1723765249584,0.15878149,57746.0,57745.0,0.69730594]
[1723765249809,0.15279885,57746.0,57745.0,0.69730594]
[1723765250084,0.15851956,57746.0,57745.0,0.69730594]
[1723765250284,0.15951956,57746.0,57745.0,0.70630594]
[1723765250548,0.15951956,57746.0,57745.0,0.71630594]
[1723765250727,0.15851956,57746.0,57745.0,0.70730594]
[1723765250935,0.15851956,57746.0,57745.0,0.71830594]
[1723765251137,0.15951956,57746.0,57745.0,0.71830594]
[1723765251554,0.15851956,57746.0,57745.0,0.70730594]
[1723765251760,0.15851956,57746.0,57745.0,0.70630594]
[1723765251982,0.15951956,57746.0,57745.0,0.70630594]
[1723765252195,0.14486837,57746.0,57745.0,0.0242264]
[1723765252415,0.14358074,57746.0,57745.0,0.1884014]
[1723765252628,0.15949193,57746.0,57745.0,0.1884014]
[1723765252834,0.15949193,57746.0,57745.0,0.1914014]
[1723765253039,0.15949193,57746.0,57745.0,0.1884014]
[1723765253212,0.15949193,57746.0,57745.0,0.1914014]
[1723765253824,0.15949193,57746.0,57745.0,0.1824014]
[1723765253825,0.15849193,57746.0,57745.0,0.1824014]
[1723765253993,0.15849193,57746.0,57745.0,0.35795594]
[1723765253994,0.02219193,57746.0,57745.0,0.35795594]
[1723765254197,0.02219193,57746.0,57745.0,1.11465594]
[1723765254398,0.00056003,57746.0,57745.0,1.19265594]
[1723765254625,0.00056003,57746.0,57745.0,1.53500594]
[1723765254826,0.00056003,57746.0,57745.0,1.53900594]
[1723765255854,0.00056003,57746.0,57745.0,1.39700594]
[1723765259096,0.00056003,57746.0,57745.0,1.57780594]
[1723765259705,0.00056003,57746.0,57745.0,1.58817297]
[1723765260290,0.00056003,57746.0,57745.0,1.58917297]
[1723765260487,0.00056003,57746.0,57745.0,1.59117297]
[1723765260692,0.00056003,57746.0,57745.0,1.58817297]
[1723765264176,0.00056003,57746.0,57745.0,1.57780594]
[1723765264530,0.00056003,57746.0,57745.0,1.23145594]
[1723765264886,0.00056003,57746.0,57745.0,1.49700594]
[1723765265476,0.00056003,57746.0,57745.0,1.15065594]
[1723765265674,0.08428019,57746.0,57745.0,0.70130594]
[1723765265938,0.08428019,57746.0,57745.0,0.70230594]
[1723765266242,0.10022537,57746.0,57745.0,0.70230594]
[1723765266808,0.09450521,57746.0,57745.0,0.35595594]
[1723765267015,0.1002258,57746.0,57745.0,0.35595594]
[1723765267838,0.1002258,57746.0,57745.0,0.70230594]
[1723765268299,0.10022578,57746.0,57745.0,0.70230594]
[1723765268872,0.10022578,57746.0,57745.0,0.35595594]
[1723765269240,0.10022578,57746.0,57745.0,0.35795594]
[1723765269758,0.10022578,57746.0,57745.0,0.35495594]
[1723765270392,0.09893641,57746.0,57745.0,0.35595594]
[1723765270990,0.09893641,57746.0,57745.0,0.70521014]
[1723765271420,0.09893641,57746.0,57745.0,0.35886014]
[1723765271600,0.09893641,57746.0,57745.0,0.70521014]
[1723765271814,0.09893641,57746.0,57745.0,0.18268514]
[1723765271977,0.09893641,57746.0,57745.0,0.18368514]
[1723765272173,0.09893666,57746.0,57745.0,0.18368514]
[1723765272402,0.09893666,57746.0,57745.0,0.0111306]
[1723765272403,1.03069666,57746.0,57745.0,0.0111306]
[1723765272607,1.81365451,57746.0,57745.0,0.0111306]
[1723765272801,1.68387461,57746.0,57745.0,0.0111306]
[1723765273000,2.13880423,57746.0,57745.0,0.0111306]
[1723765273206,2.43280009,57746.0,57745.0,0.0111306]
[1723765273447,2.58418007,57746.0,57745.0,0.0111306]
[1723765273655,3.10431287,57746.0,57745.0,0.0071306]
[1723765273875,2.92911001,57746.0,57745.0,0.0071306]
[1723765274003,0.656442,57732.0,57731.0,0.0002]
[1723765274207,0.71402317,57732.0,57731.0,0.0002]
[1723765274409,1.06045117,57732.0,57731.0,0.0002]
[1723765274614,1.02163451,57732.0,57731.0,0.0002]
[1723765274832,1.02142608,57732.0,57731.0,0.0002]
[1723765275172,1.09921857,57732.0,57731.0,0.0002]
[1723765275366,1.07325685,57732.0,57731.0,0.0002]
[1723765275576,1.02142608,57732.0,57731.0,0.0002]
[1723765276106,1.07325685,57732.0,57731.0,0.0002]
[1723765276308,1.41968485,57732.0,57731.0,0.0002]
[1723765276760,1.07725685,57732.0,57731.0,0.0022]
[1723765276957,1.07925685,57732.0,57731.0,0.0012]
[1723765277182,1.02742608,57732.0,57731.0,0.0012]
[1723765277465,0.67499808,57732.0,57731.0,0.0002]
[1723765277688,0.67999808,57732.0,57731.0,0.0002]
[1723765277886,1.02642608,57732.0,57731.0,0.0002]
[1723765279179,1.03242608,57732.0,57731.0,0.0012]
[1723765280039,1.02742608,57732.0,57731.0,0.0012]
[1723765280450,1.03342608,57732.0,57731.0,0.0022]
[1723765280851,1.02742608,57732.0,57731.0,0.0012]
[1723765281174,1.03242608,57732.0,57731.0,0.0012]
[1723765281775,0.68599808,57732.0,57731.0,0.0012]
[1723765282140,0.16084329,57732.0,57731.0,0.0012]
[1723765282340,0.16084329,57732.0,57731.0,0.34787574]
[1723765282341,0.02404329,57732.0,57731.0,0.34787574]
[1723765282572,0.02404329,57732.0,57731.0,0.17365874]
[1723765282966,0.62288824,57732.0,57731.0,0.0021042]
[1723765283192,0.9750388,57732.0,57731.0,0.0021042]
[1723765283414,0.2821828,57732.0,57731.0,0.0021042]
[1723765283848,0.02966901,57732.0,57731.0,0.0031042]
[1723765284105,0.02394624,57732.0,57731.0,0.0021042]
[1723765284525,0.19716024,57732.0,57731.0,0.0021042]
[1723765284643,0.02966901,57732.0,57731.0,0.0021042]
[1723765284844,0.02394624,57732.0,57731.0,0.0021042]
[1723765285678,0.02394624,57732.0,57731.0,0.0031042]
[1723765286079,0.02394624,57732.0,57731.0,0.0051042]
[1723765286278,0.02394624,57732.0,57731.0,0.1783212]
[1723765286681,0.02394624,57732.0,57731.0,0.0051042]
[1723765287274,0.02394624,57732.0,57731.0,0.0021042]
[1723765287275,0.19716024,57732.0,57731.0,0.0021042]
[1723765287697,0.20288299,57732.0,57731.0,0.0021042]
[1723765287906,0.62451099,57732.0,57731.0,0.0021042]
[1723765288095,0.62451097,57732.0,57731.0,0.0021042]
[1723765288249,0.97093897,57732.0,57731.0,0.0021042]
[1723765289242,1.46371766,57732.0,57731.0,0.0021042]
[1723765289450,1.11728966,57732.0,57731.0,0.0021042]
[1723765290996,1.46371766,57732.0,57731.0,0.0021042]